Cogmind - Beta 13 @@@ ROGUE MODE // 2024.04.05 @ 17:24:33 Player: ScarletApple Result: Destroyed by G-47 Trooper with Particle Gun Performance ------------- Evolutions (2) 1000 Regions Visited (4) 800 Robots Destroyed (25) 125 Value Destroyed (716) 716 Prototype IDs (1) 20 Alien Tech Used (0) 0 Bonus (91) 91 TOTAL SCORE: 2752 Bonus ------- Follower Combat Kills 91 Cogmind --------- Core Integrity 0/550 Matter 88/300 Energy 300/300 System Corruption 0% Temperature Cool (9) Movement Walking (260) Ox2 Location -8/Materials Parts ------- > --- POWER (2) -------- (None) > --- PROPULSION (3) --- Aluminum Leg Aluminum Leg > --- UTILITY (4) ------ High-capacity Storage Unit Compact Battery Visual Processing Unit > --- WEAPON (2) ------- Light Assault Rifle Light Assault Rifle > --- INVENTORY (20) --- Light Treads Improved Heat Sink Large Battery (200) High-capacity Battery (250) Advanced Weight Redist. System Sensor Array Signal Interpreter Improved Targeting Computer Beamcaster Heavy Flail Peak State ------------ > --- POWER ------------ Ion Engine Ion Engine > --- PROPULSION ------- Light Treads Light Treads Light Treads > --- UTILITY ---------- Heat Sink High-capacity Storage Unit Visual Processing Unit Experimental Sensor Array > --- WEAPON ----------- Light Cannon Light Cannon > --- INVENTORY -------- Light Deuterium Engine Aluminum Leg Aluminum Leg Aluminum Leg Aluminum Leg Aluminum Leg Improved Heat Sink Large Battery High-capacity Battery Advanced Weight Redist. System Sensor Array Signal Interpreter Improved Targeting Computer Light Armor Plating Beamcaster Light Assault Rifle Light Assault Rifle Light Cannon Mining Claw [Rating: 23] Favorites ----------- Power Light Ion Engine Engine Light Ion Engine Propulsion Wheel Treads Light Treads Leg Aluminum Leg Wheel Wheel Utility Small Storage Unit Device Heat Sink Storage Small Storage Unit Processor Visual Processing Unit Protection Light Armor Plating Weapon Assault Rifle Ballistic Gun Assault Rifle Ballistic Cannon Light Cannon Slashing Weapon Mining Claw Build | -11 -10 -10 -9 -8 ------- Run | Yrd Mat Min Mat Mat Slots Evolved 4 | . . . 2 2 Power 1 | . . . . 1 Propulsion 1 | . . . 1 . Utility 2 | . . . 1 1 Weapon . | . . . . . Parts Attached 33 | 6 6 . 5 16 Power 5 | 1 2 . . 2 Engine 5 | 1 2 . . 2 Core . | . . . . . Reactor . | . . . . . Propulsion 11 | 2 2 . 2 5 Treads 4 | . 2 . 2 . Leg 5 | . . . . 5 Wheel 2 | 2 . . . . Hover . | . . . . . Flight . | . . . . . Utility 9 | 1 2 . 1 5 Device 3 | . 1 . . 2 Storage 3 | 1 1 . . 1 Processor 1 | . . . 1 . Hackware . | . . . . . Protection 2 | . . . . 2 Artifact . | . . . . . Weapon 8 | 2 . . 2 4 Energy Gun . | . . . . . Energy Cannon . | . . . . . Ballistic Gun 4 | 2 . . . 2 Ballistic Cannon 3 | . . . 2 1 Launcher . | . . . . . Special Weapon . | . . . . . Impact Weapon . | . . . . . Slashing Weapon 1 | . . . . 1 Piercing Weapon . | . . . . . Special Melee Weapon . | . . . . . Unidentified Prototypes 1 | . . . . 1 Parts Lost 20 | . 2 1 2 15 Power 4 | . 1 . . 3 Propulsion 7 | . 1 . 1 5 Utility 3 | . . . . 3 Weapon 6 | . . 1 1 4 Highest Loss Streak 9 | . 2 1 1 9 To Critical Strikes 1 | . . . . 1 Average Slot Usage (%) 88 | . 96 85 85 85 Engine 12 | . 13 14 11 12 Treads 18 | . 11 28 28 13 Leg 2 | . . . . 8 Wheel 4 | . 15 . . . Device 12 | . 12 14 11 13 Storage 11 | . 14 14 11 10 Processor 4 | . . . 6 9 Ballistic Gun 12 | . 28 14 6 4 Ballistic Cannon 7 | . . . 11 12 Naked Turns . | . . . . . Heaviest Build 58 | 12 50 48 52 58 Greatest Support 60 | 20 40 40 60 60 Greatest Overweight (x) 4 | . 4 1 1 3 Average Overweight (x) . | . . 1 . . Largest Inventory Capacity 20 | 8 20 20 20 20 Average Capacity 11 | 7 14 20 20 20 Most Carried 19 | 6 17 19 19 19 Average Carried 6 | 2 9 18 18 14 Final Capacity 20 | 8 20 20 20 20 Final Carried 19 | 6 17 19 19 10 Class Distribution -------------------- 97% | Mutant Dominant Class ---------------- Mutant | -10/Materials Mutant | -10/Mines Mutant | -9/Materials Mutant | -8/Materials Resources | -11 -10 -10 -9 -8 ----------- Run | Yrd Mat Min Mat Mat Matter Collected 859 | 185 311 19 127 217 Remotely . | . . . . . Salvage Created 665 | . 337 13 165 150 Parts 42 | . 32 . 6 4 Haulers Intercepted . | . . . . . Recyclers Shooed . | . . . . . Parts Field Recycled . | . . . . . Retrieved Matter . | . . . . . Parts Self-Destructed . | . . . . . Prevented . | . . . . . Kills | -11 -10 -10 -9 -8 ------- Run | Yrd Mat Min Mat Mat Combat Hostiles Destroyed 23 | . 11 1 5 6 Melee 2 | . . . . 2 Guns 16 | . 11 1 3 1 Cannons 5 | . . . 2 3 Classes Destroyed 6 | . 4 . 1 1 Builder 1 | . 1 . . . Watcher 1 | . 1 . . . Swarmer 9 | . 6 1 2 . Grunt 10 | . 5 . 1 4 Sentry 3 | . . . 2 1 Hunter 1 | . . . . 1 Best Kill Streak 6 | . 6 1 2 2 Combat Bots Only 6 | . 6 1 2 2 Max Kills in Single Turn 1 | . 1 1 1 1 Gunslinging . | . . . . . Exploded . | . . . . . Melee 1 | . . . . 1 Uniques/NPCs Destroyed . | . . . . . Combat | -11 -10 -10 -9 -8 -------- Run | Yrd Mat Min Mat Mat Hostile Shots Fired 297 | 2 85 5 18 187 Missed 78 | . 22 . 9 47 Damage Taken 2966 | 49 581 41 127 2168 Core 745 | 34 140 . 14 557 Absorbed by Shields . | . . . . . Regen/Repaired (Parts) 15 | . 15 . . . Core Remaining (%) 70 | 86 . 30 96 . Volleys Fired 112 | . 33 3 20 56 Largest 2 | . 2 2 2 2 Hottest 70 | . 40 40 70 70 Shots Fired 195 | . 66 4 26 99 Gun 102 | . 66 4 17 15 Cannon 93 | . . . 9 84 Launcher . | . . . . . Special . | . . . . . Kinetic 195 | . 66 4 26 99 Thermal . | . . . . . Explosive . | . . . . . Electromagnetic . | . . . . . Robot Hit Streak 18 | . 9 1 11 18 Robot Miss Streak 6 | . 4 2 1 6 Penetration Max . | . . . . . Secondary Targets 3 | . 3 . . . Max Gunslinging Chain 1 | . 1 . . . Shots Hit Robots 136 | . 41 1 18 76 Core Hits 45 | . 18 1 7 19 Critical Kills 1 | . 1 . . . Critical Parts Destroyed . | . . . . . Critical Strikes 4 | . 1 . 1 2 Destroy 1 | . 1 . . . Blast 3 | . . . 1 2 Melee Attacks 18 | . . . . 18 Impact . | . . . . . Slashing 18 | . . . . 18 Piercing . | . . . . . Sneak Attacks . | . . . . . Combat Hostiles . | . . . . . Follow-up Attacks . | . . . . . Damage Inflicted 2029 | . 519 25 250 1235 Guns 822 | . 519 25 165 113 Cannons 887 | . . . 85 802 Explosions . | . . . . . Melee 306 | . . . . 306 Ramming 14 | . . . . 14 Kinetic 1709 | . 519 25 250 915 Thermal . | . . . . . Explosive . | . . . . . Electromagnetic . | . . . . . Impact . | . . . . . Slashing 306 | . . . . 306 Piercing . | . . . . . Highest Corruption . | . . . . . Average Corruption . | . . . . . Corruption Purged . | . . . . . Corruption Blocked . | . . . . . Overload Shots . | . . . . . Overflow Damage 8 | . . . . 8 Projectiles . | . . . . . Explosions . | . . . . . Melee 8 | . . . . 8 Knockbacks 5 | . . . 1 4 Impact . | . . . . . Kinetic 5 | . . . 1 4 Secondary . | . . . . . Self-Inflicted Damage . | . . . . . Shots . | . . . . . Rammed 1 | . . . . 1 Targets Rammed 2 | . . . . 2 Kicked 1 | . . . . 1 Crushed . | . . . . . Highest Temperature 33 | . . . . 33 Average Temperature 9 | . . . . 9 Received Heat Transfer 1299 | . 165 . 36 1098 Siege Activations . | . . . . . Robots Corrupted . | . . . . . Combat Hostiles . | . . . . . Parts Fried . | . . . . . Impact Corruptions . | . . . . . Robots Melted . | . . . . . Combat Hostiles . | . . . . . Parts Melted . | . . . . . Heat Transferred . | . . . . . Parts Sabotaged . | . . . . . Parts Stolen . | . . . . . Parts Stripped . | . . . . . Power Chain Reactions . | . . . . . Alert | -11 -10 -10 -9 -8 ------- Run | Yrd Mat Min Mat Mat Peak Influence 214 | . 180 90 214 153 Initial 70 | . . 70 31 . Average 30 | . 104 80 91 43 Maximum Alert Level 1 | . . . 1 . Low Security (%) 97 | 100 100 100 81 100 Level 1 2 | . . . 18 . Level 2 . | . . . . . Level 3 . | . . . . . Level 4 . | . . . . . Level 5 . | . . . . . High Security . | . . . . . Max Security . | . . . . . Squads Dispatched 6 | . 2 . 1 3 Investigation 1 | . 1 . . . Extermination . | . . . . . Reinforcement 5 | . 1 . 1 3 Assault . | . . . . . Garrison . | . . . . . Intercept . | . . . . . Searches Triggered . | . . . . . Construction Impeded . | . . . . . Haulers Reinforced . | . . . . . Active Scanning Responses . | . . . . . Cargo Convoy Interrupts . | . . . . . Stealth | -11 -10 -10 -9 -8 --------- Run | Yrd Mat Min Mat Mat Distress Signals 4 | . 1 . . 3 Communications Jammed . | . . . . . Distress Signals . | . . . . . Times Spotted 55 | 5 18 2 10 20 Peak Tracking Total 9 | 5 6 2 4 9 Tactical Retreats 4 | . 2 . . 2 Traps | -11 -10 -10 -9 -8 ------- Run | Yrd Mat Min Mat Mat Traps Triggered . | . . . . . Indirectly . | . . . . . Trap Hack Attempts . | . . . . . Triggered . | . . . . . Disarmed . | . . . . . Reprogrammed . | . . . . . Reused . | . . . . . Traps Extracted . | . . . . . Installed . | . . . . . Triggered . | . . . . . Machines | -11 -10 -10 -9 -8 ---------- Run | Yrd Mat Min Mat Mat Machines Disabled 1 | . . . 1 . Max in Single Turn . | . . . . . Machines Repaired . | . . . . . Machines Dismantled . | . . . . . Machines Sabotaged . | . . . . . Overloaded Fab Kills . | . . . . . Hacking | -11 -10 -10 -9 -8 --------- Run | Yrd Mat Min Mat Mat Machines Accessed 3 | . 3 . . . Terminals 2 | . 2 . . . Fabricators . | . . . . . Repair Stations 1 | . 1 . . . Recycling Units . | . . . . . Scanalyzers . | . . . . . Garrison Access . | . . . . . Total Hacks 8 | . 8 . . . Successful 4 | . 4 . . . Failed 4 | . 4 . . . Catastrophic . | . . . . . Database Lockouts . | . . . . . Manual 3 | . 2 . . 1 Terminals 5 | . 5 . . . Fabricators . | . . . . . Repair Stations 3 | . 3 . . . Recycling Units . | . . . . . Scanalyzers . | . . . . . Garrison Access . | . . . . . Terminal Hacks 2 | . 2 . . . Record 2 | . 2 . . . Fabricator Hacks . | . . . . . Repair Station Hacks 2 | . 2 . . . Scan Component 1 | . 1 . . . Repair 1 | . 1 . . . Recycling Unit Hacks . | . . . . . Scanalyzer . | . . . . . Garrison Access Hacks . | . . . . . Unauthorized Hacks . | . . . . . Terminals . | . . . . . Fabricators . | . . . . . Repair Stations . | . . . . . Recycling Units . | . . . . . Scanalyzers . | . . . . . Garrison Access . | . . . . . Data Cores Recovered . | . . . . . Used . | . . . . . Hacking Detections 2 | . 1 . . 1 Full Trace Events 1 | . 1 . . . Feedback Events . | . . . . . Feedback Blocked . | . . . . . Robot Schematics Acquired . | . . . . . Robots Built . | . . . . . Authchips . | . . . . . Time . | . . . . . Total Robot Build Rating . | . . . . . Part Schematics Acquired . | . . . . . Parts Built . | . . . . . Authchips . | . . . . . Time . | . . . . . Total Part Build Rating . | . . . . . Parts Repaired 1 | . 1 . . . Time 26 | . 26 . . . Parts Recycled . | . . . . . Recycled Matter . | . . . . . Retrieved Matter . | . . . . . Retrieved Components . | . . . . . Parts Scanalyzed . | . . . . . Part Schematics Acquired . | . . . . . Parts Damaged . | . . . . . Bothacking | -11 -10 -10 -9 -8 ------------ Run | Yrd Mat Min Mat Mat Used RIF Installer . | . . . . . Robots Hacked . | . . . . . Non-combat . | . . . . . Combat . | . . . . . Robot Hacks Applied . | . . . . . Relay Couplers Released . | . . . . . Fabnet Peak Effective % . | . . . . . Robots Rewired . | . . . . . Allies Hacked . | . . . . . Hacks Repelled . | . . . . . Allies | -11 -10 -10 -9 -8 -------- Run | Yrd Mat Min Mat Mat Total Allies 3 | . . 3 . . Largest Group 3 | . . 3 3 . Highest-Rated Group 74 | . . 74 74 . Highest-Rated Ally 31 | . . 31 31 . Total Orders . | . . . . . Ally Attacks 26 | . . . 26 . Total Damage 435 | . . . 435 . Kills 5 | . . . 5 . Allies Corrupted . | . . . . . Allies Melted . | . . . . . Intel | -11 -10 -10 -9 -8 ------- Run | Yrd Mat Min Mat Mat Robot Analysis Total . | . . . . . Derelict Logs Recovered . | . . . . . Drone Launches . | . . . . . Drone Recoveries . | . . . . . Exploration | -11 -10 -10 -9 -8 ------------- Run | Yrd Mat Min Mat Mat Turns Passed 6358 | 3941 714 149 855 699 Spaces Moved 1989 | 903 360 59 423 244 Core 4 | 2 . . . 2 Treads 733 | . 100 59 423 151 Legs 91 | . . . . 91 Wheels 1161 | 901 260 . . . Hover . | . . . . . Flight . | . . . . . Fastest Speed 50 | 50 80 240 160 160 Average Speed 128 | 79 127 240 185 186 Slowest Speed 320 | 80 320 240 240 260 Overloaded Moves . | . . . . . Propulsion Burnouts . | . . . . . Robots Hopped . | . . . . . Cave-ins Triggered . | . . . . . Exploration Rate (%) 33 | 70 49 12 24 13 Regions Visited 4 Branch Regions 1 Pre-discovered Areas 1 | . . 1 . . Known Exits Taken . | . . . . . Unknown Exits Taken 4 | 1 1 1 1 . Scrap Searched . | . . . . . Spaces Dug . | . . . . . Terrain Destroyed . | . . . . . Melee . | . . . . . Projectile . | . . . . . AOE . | . . . . . Terrain Rammed . | . . . . . Walls Destroyed . | . . . . . Machines Disabled . | . . . . . Actions | -11 -10 -10 -9 -8 --------- Run | Yrd Mat Min Mat Mat Total 5552 | 4118 549 63 468 354 Wait 3362 | 3204 133 . 12 13 Move 1985 | 902 359 58 422 244 Hop . | . . . . . Pick Up 33 | 6 15 2 7 3 Fast Attach 9 | 6 2 . . 1 Attach 21 | . 2 . 5 14 Detach 2 | . . . . 2 Swap 3 | . 2 . . 1 Drop 5 | . 3 . 2 . Fire 112 | . 33 3 20 56 Melee 18 | . . . . 18 Ram . | . . . . . Kick 1 | . . . . 1 Crush 1 | . . . . 1 Escape Stasis . | . . . . . Rewire . | . . . . . Trap . | . . . . . Miscellaneous . | . . . . . Route ------- -11/Scrapyard -10/Materials (discovered 2 exits: [*Mat] / [*Min]) -10/Mines -9/Materials -8/Materials History --------- Turn | Location | Event 6 | -11/Scrapyard | Discovered new exit (range 16) 3860 | -11/Scrapyard | Assembled infested the area 3942 | -11/Scrapyard | Entered Materials 3943 | -10/Materials | Build established: Mutant 4233 | -10/Materials | Discovered new exit (range 16) 4352 | -10/Materials | Repaired Wheel 4381 | -10/Materials | Core integrity fell below 50% 4395 | -10/Materials | Discovered new exit (range 16) 4656 | -10/Materials | Entered Mines 4663 | -10/Mines | Escorted by a lone wolf Derelict 4683 | -10/Mines | Learned location of Storage (-7) 4724 | -10/Mines | Found a damaged Exp. Sensor Array with a note attached 4729 | -10/Mines | Found Prototype Device 4766 | -10/Mines | Discovered new exit (range 16) 4805 | -10/Mines | Entered Materials 4805 | -9/Materials | Accompanied by 3 allies 4805 | -9/Materials | Evolved 2 slots: Propulsion x1, Utility x1 4810 | -9/Materials | Led the pair of lost Derelicts to an unsafe place 5652 | -9/Materials | Discovered new exit (range 4) 5660 | -9/Materials | Entered another Materials area 5660 | -8/Materials | Evolved 2 slots: Power x1, Utility x1 5661 | -8/Materials | Identified Exp. Sensor Array 6048 | -8/Materials | Lost 5 parts (1p2n1u1w) 6159 | -8/Materials | Core integrity fell below 50% 6190 | -8/Materials | Core integrity fell below 20% 6218 | -8/Materials | Lost 9 parts (2p3n1u3w) 6359 | -8/Materials | Destroyed by G-47 Trooper with Particle Gun Last Messages --------------- 06160_ R-06 Scavenger collects Aluminum Leg. 06165_ Acquired 46 matter. 06170_ K-01 Serf collects debris. 06187_ Mining Claw destroyed. 06190_ M-28 Smith repairs G-47 Trooper. 06190_ K-01 Serf collects debris. 06192_ M-28 Smith repairs Aluminum Leg. 06209_ G-47 Trooper destroyed. 06212_ K-01 Serf collects debris. 06214_ Acquired 39 matter. 06217_ Kicked K-01 Serf. 06219_ Acquired 43 matter. 06227_ Acquired 3 matter. 06240_ Acquired Hvy. Flail. 06255_ Acquired Com. Battery. 06291_ Acquired 2 matter. 06342_ Terminal disabled. 06351_ Slug penetrates Wall. 06354_ Lgt. Armor Plating destroyed. 06357_ Critical hit (Burn: +37). Map ----- +----------------------------------------------------+ | | | | | | | | | | | | | | | | | | | | | | | | | | | | | | | ?????????????????????????????????????????????????? | | ?????????????????????###########?????????????????? | | ????########?????????# ! | #?????????????????? | | ????# [[ #?????????# !!| ######????????????? | | ????# [ #?????????# !|| + #????????????? | | ????# #?????????# # #????????????? | | ????# #?????????########### ##### #????? | | ????# #????????????# + T #????? | | ????# [ #??????####### "" ########### #????? | | ######+#+########## # " #??????????????????? | | #@"" #??????????????????? | | + g #??????????????????? | | # g #??????????????????? | | ########+#### ##### # #??????????????????? | | ?????? #?# #???## ########??????????????????? | | ????? """ #?# #????# #?????????????????????????? | | ????] """ #?# #????# #?????????????????????????? | | ???# """ #?# #????# +?????????????????????????? | | ???# #?# #????# #?????????????????????????? | | ???#! ! #?# #????# #?????????????????????????? | | ???########?# #????# #?????????????????????????? | | ????????????# #????# #?????????????????????????? | | ????????????# #????# #?????????????????????????? | | ????????????#[#???? ?????????????????????????? | | ?????######## #???? ?????????????????????????? | | ?????# !#%#???? ""?????????????????????????? | | ?????# """ # #??? """????????????????????????? | | ?????# """ [#%#??? "??????????????????????????? | | ?????# """ # #???? ???????????????????????????? | | ?????# # #????# ???????????????????????????? | | ?????# + #??????????????????????????????????? | | ?????######## #??????????????????????????????????? | | ????????????# #??????????????????????????????????? | | ????????????%% ??????????????????????????????????? | | ???????????? ?????????????????????????????????? | +----------------------------------------------------+ Best States ------------- Heat Dissipation 41 Energy Generation 19 Energy Capacity 400 Matter Stores 300 Matter Capacity 300 Sight Range 18 Robot Scan Range 20 Terrain Scan Density 10 Additional Mass Support 9 Armor Coverage 150 Evasion (%) 44 Recoil Reduction 3 Item Schematics ----------------- None Robot Schematics ------------------ None Fabricated ------------ Nothing Alien Tech Used ----------------- None Achievements -------------- Curiosity Killed The Cat Oops Part-time Mechanic Storm Trooper Challenges ------------ None Game ------ Seed BeamCooledInverter Manual? 0 Play Time 00:42:01 Cumulative 3.6 hours Start 2024.04.05 @ 16:18:02 End 2024.04.05 @ 17:24:33 Sessions 1 Manual Loads 0 Difficulty Rogue Special Mode None Game No. 4 Rogue 4 Adventurer 0 Explorer 0 Win Type - Total 0 Types 0/0/0/0/0/0/0/0/0 Lore% 4 Gallery% 5 Achievement% 7 Wizard Run 0 Options --------- Layout 1 ASCII 0 Keyboard 1 Movement Arrows Keybinds 0 Fullscreen 2 Font 32/SmallcapsGlow Map View 77x35 Zoom Use 15% Tactical HUD 1 Map Filters NONE Filters NONE Steam 1 RUN: 4b09b8ef-8920-43dc-b57f-6de49698b5ff